[Event "Titled Tuesday Blitz June 28 Early 2022"]
[White "Johnson, Ben"]
[Black "Shtyka, Sergey"]
[WhiteFideId "2010917"]
[BlackFideId "4138465"]
[WhiteElo "2174"]
[BlackElo "2014"]
[Result "0-1"]
[Round "02"]
[TimeControl "180+1"]
[Date "2022.06.28"]
[WhiteClock "0:00:33"]
[BlackClock "0:00:31"]

1. Nf3 {[%clk 0:03:00]}  c5 {[%clk 0:02:08]} 2. c4 {[%clk 0:02:56]}  Nc6 {[%clk 0:01:46]} 3. Nc3 {[%clk 0:02:54]}  g6 {[%clk 0:01:45]} 4. d4 {[%clk 0:02:52]}  cxd4 {[%clk 0:01:44]} 5. Nxd4 {[%clk 0:02:53]}  Bg7 {[%clk 0:01:44]} 6. Nc2 {[%clk 0:02:34]}  Nf6 {[%clk 0:01:43]} 7. e4 {[%clk 0:02:32]}  O-O {[%clk 0:01:43]} 8. Be2 {[%clk 0:02:32]}  d6 {[%clk 0:01:42]} 9. O-O {[%clk 0:02:31]}  Be6 {[%clk 0:01:43]} 10. Be3 {[%clk 0:02:28]}  Rc8 {[%clk 0:01:42]} 11. f4 {[%clk 0:02:16]}  a6 {[%clk 0:01:41]} 12. Rc1 {[%clk 0:02:11]}  Na5 {[%clk 0:01:34]} 13. b3 {[%clk 0:02:09]}  b5 {[%clk 0:01:34]} 14. Nd5 {[%clk 0:01:57]}  Bxd5 {[%clk 0:01:30]} 15. exd5 {[%clk 0:01:51]}  bxc4 {[%clk 0:01:30]} 16. bxc4 {[%clk 0:01:25]}  Nxc4 {[%clk 0:01:28]} 17. Bd4 {[%clk 0:01:26]}  Qa5 {[%clk 0:01:09]} 18. Bf3 {[%clk 0:00:49]}  Nd2 {[%clk 0:00:51]} 19. Ne3 {[%clk 0:00:38]}  Nxf3+ {[%clk 0:00:46]} 20. Qxf3 {[%clk 0:00:36]}  Qxa2 {[%clk 0:00:39]} 21. f5 {[%clk 0:00:35]}  Qa3 {[%clk 0:00:35]} 22. fxg6 {[%clk 0:00:34]}  Rxc1 {[%clk 0:00:33]} 23. gxh7+ {[%clk 0:00:32]}  Kh8 {[%clk 0:00:33]} 24. Rxc1 {[%clk 0:00:32]}  Qxc1+ {[%clk 0:00:33]} 25. Kf2 {[%clk 0:00:33]}  Qd2+ {[%clk 0:00:31]} 26. Kg3 {[%clk 0:00:33]}  Qxd4 {[%clk 0:00:31]} 0-1


[Site "https://www.chess.com"]

[Event "Titled Tuesday Blitz June 28 Early 2022"]
[White "Joie, Sebastien"]
[Black "Schmakel, Sam"]
[WhiteFideId "650420"]
[BlackFideId "2039311"]
[WhiteElo "2397"]
[BlackElo "2356"]
[Result "1/2-1/2"]
[Round "02"]
[TimeControl "180+1"]
[Date "2022.06.28"]
[WhiteClock "0:00:18"]
[BlackClock "0:00:10"]

1. Nf3 {[%clk 0:03:00]}  Nf6 {[%clk 0:02:59]} 2. g3 {[%clk 0:03:00]}  g6 {[%clk 0:03:00]} 3. b3 {[%clk 0:03:01]}  Bg7 {[%clk 0:02:59]} 4. Bb2 {[%clk 0:03:01]}  O-O {[%clk 0:03:00]} 5. Bg2 {[%clk 0:03:02]}  d6 {[%clk 0:02:58]} 6. d4 {[%clk 0:03:01]}  c5 {[%clk 0:02:56]} 7. c4 {[%clk 0:03:00]}  Ne4 {[%clk 0:02:51]} 8. O-O {[%clk 0:02:59]}  Nc6 {[%clk 0:02:47]} 9. a3 {[%clk 0:02:59]}  Bf5 {[%clk 0:02:36]} 10. Ra2 {[%clk 0:02:58]}  Qb6 {[%clk 0:02:12]} 11. d5 {[%clk 0:02:49]}  Bxb2 {[%clk 0:02:10]} 12. Rxb2 {[%clk 0:02:47]}  Na5 {[%clk 0:02:05]} 13. Nfd2 {[%clk 0:02:42]}  Nxd2 {[%clk 0:02:00]} 14. Nxd2 {[%clk 0:02:43]}  Rac8 {[%clk 0:02:00]} 15. e4 {[%clk 0:02:38]}  Bd7 {[%clk 0:02:00]} 16. Qc2 {[%clk 0:02:37]}  Qc7 {[%clk 0:01:53]} 17. Qc3 {[%clk 0:02:27]}  b5 {[%clk 0:01:48]} 18. f4 {[%clk 0:02:23]}  Qb6 {[%clk 0:01:43]} 19. Kh1 {[%clk 0:02:02]}  b4 {[%clk 0:01:42]} 20. axb4 {[%clk 0:02:02]}  cxb4 {[%clk 0:01:41]} 21. Qf3 {[%clk 0:02:00]}  Nb7 {[%clk 0:01:39]} 22. e5 {[%clk 0:02:00]}  Nc5 {[%clk 0:01:38]} 23. Ne4 {[%clk 0:01:57]}  a5 {[%clk 0:01:28]} 24. h4 {[%clk 0:01:51]}  a4 {[%clk 0:01:15]} 25. bxa4 {[%clk 0:01:52]}  Nxa4 {[%clk 0:01:12]} 26. Rb3 {[%clk 0:01:37]}  Rxc4 {[%clk 0:01:10]} 27. exd6 {[%clk 0:01:38]}  Bf5 {[%clk 0:00:59]} 28. dxe7 {[%clk 0:01:37]}  Re8 {[%clk 0:00:56]} 29. Nd2 {[%clk 0:01:10]}  Rc3 {[%clk 0:00:54]} 30. Rxc3 {[%clk 0:01:06]}  bxc3 {[%clk 0:00:55]} 31. Nc4 {[%clk 0:01:07]}  Qc5 {[%clk 0:00:50]} 32. Ne3 {[%clk 0:01:02]}  Rxe7 {[%clk 0:00:47]} 33. Nxf5 {[%clk 0:01:02]}  gxf5 {[%clk 0:00:48]} 34. d6 {[%clk 0:00:58]}  Ra7 {[%clk 0:00:36]} 35. d7 {[%clk 0:00:55]}  Qc7 {[%clk 0:00:28]} 36. Rd1 {[%clk 0:00:50]}  Qd8 {[%clk 0:00:29]} 37. Qc6 {[%clk 0:00:48]}  c2 {[%clk 0:00:25]} 38. Qxc2 {[%clk 0:00:42]}  Nb6 {[%clk 0:00:20]} 39. Qxf5 {[%clk 0:00:39]}  Rxd7 {[%clk 0:00:20]} 40. Rxd7 {[%clk 0:00:32]}  Nxd7 {[%clk 0:00:21]} 41. h5 {[%clk 0:00:27]}  h6 {[%clk 0:00:19]} 42. Qd5 {[%clk 0:00:20]}  Qe7 {[%clk 0:00:18]} 43. Kh2 {[%clk 0:00:20]}  Nf6 {[%clk 0:00:17]} 44. Qf5 {[%clk 0:00:19]}  Kg7 {[%clk 0:00:17]} 45. g4 {[%clk 0:00:20]}  Qe1 {[%clk 0:00:16]} 46. Bf3 {[%clk 0:00:18]}  Qf2+ {[%clk 0:00:14]} 47. Bg2 {[%clk 0:00:19]}  Qh4+ {[%clk 0:00:14]} 48. Bh3 {[%clk 0:00:19]}  Qf2+ {[%clk 0:00:11]} 49. Bg2 {[%clk 0:00:19]}  Qe2 {[%clk 0:00:10]} 50. Kg3 {[%clk 0:00:18]}  Qe1+ {[%clk 0:00:10]} 51. Kh2 {[%clk 0:00:18]}  Qe2 {[%clk 0:00:09]} 52. Kg3 {[%clk 0:00:18]}  Qe3+ {[%clk 0:00:10]} 53. Bf3 {[%clk 0:00:18]}  Qg1+ {[%clk 0:00:10]} 54. Bg2 {[%clk 0:00:18]}  Qe1+ {[%clk 0:00:10]} 55. Kh2 {[%clk 0:00:18]}  Qh4+ {[%clk 0:00:09]} 56. Bh3 {[%clk 0:00:18]}  Qf2+ {[%clk 0:00:10]} 57. Bg2 {[%clk 0:00:18]} 1/2-1/2


[Site "https://www.chess.com"]

[Event "Titled Tuesday Blitz June 28 Early 2022"]
[White "Jones, Gawain C B"]
[Black "Krishnan, Varun"]
[WhiteFideId "409561"]
[BlackFideId "5054508"]
[WhiteElo "2657"]
[BlackElo "2573"]
[Result "1-0"]
[Round "02"]
[TimeControl "180+1"]
[Date "2022.06.28"]
[WhiteClock "0:00:16"]
[BlackClock "0:00:03"]

1. g3 {[%clk 0:03:00]}  e5 {[%clk 0:02:58]} 2. c4 {[%clk 0:03:00]}  Nf6 {[%clk 0:02:56]} 3. Bg2 {[%clk 0:02:59]}  Nc6 {[%clk 0:02:57]} 4. Nc3 {[%clk 0:02:59]}  Bb4 {[%clk 0:02:54]} 5. e4 {[%clk 0:02:59]}  O-O {[%clk 0:02:53]} 6. Nge2 {[%clk 0:02:58]}  d6 {[%clk 0:02:49]} 7. d3 {[%clk 0:02:59]}  Nd4 {[%clk 0:02:48]} 8. Nxd4 {[%clk 0:02:52]}  exd4 {[%clk 0:02:48]} 9. a3 {[%clk 0:02:52]}  Ba5 {[%clk 0:02:39]} 10. b4 {[%clk 0:02:52]}  dxc3 {[%clk 0:02:40]} 11. bxa5 {[%clk 0:02:52]}  c5 {[%clk 0:02:40]} 12. Bg5 {[%clk 0:02:40]}  Qxa5 {[%clk 0:02:32]} 13. Bxf6 {[%clk 0:02:40]}  c2+ {[%clk 0:02:31]} 14. Qd2 {[%clk 0:02:40]}  Qxd2+ {[%clk 0:02:30]} 15. Kxd2 {[%clk 0:02:41]}  gxf6 {[%clk 0:02:29]} 16. Kxc2 {[%clk 0:02:40]}  Rb8 {[%clk 0:02:21]} 17. Rab1 {[%clk 0:02:39]}  b6 {[%clk 0:02:21]} 18. f4 {[%clk 0:02:32]}  f5 {[%clk 0:02:13]} 19. e5 {[%clk 0:02:33]}  dxe5 {[%clk 0:02:14]} 20. fxe5 {[%clk 0:02:33]}  Bb7 {[%clk 0:02:14]} 21. Bxb7 {[%clk 0:02:30]}  Rxb7 {[%clk 0:02:15]} 22. Rhf1 {[%clk 0:02:30]}  f6 {[%clk 0:02:13]} 23. Rxf5 {[%clk 0:02:12]}  fxe5 {[%clk 0:02:12]} 24. Rbf1 {[%clk 0:02:12]}  Re8 {[%clk 0:01:40]} 25. Re1 {[%clk 0:02:03]}  Rbe7 {[%clk 0:01:19]} 26. Re4 {[%clk 0:02:02]}  Kg7 {[%clk 0:01:18]} 27. Rg4+ {[%clk 0:02:01]}  Kh8 {[%clk 0:01:17]} 28. Re4 {[%clk 0:01:42]}  Kg7 {[%clk 0:01:16]} 29. h4 {[%clk 0:01:42]}  Re6 {[%clk 0:01:11]} 30. Kd2 {[%clk 0:01:27]}  a6 {[%clk 0:01:11]} 31. a4 {[%clk 0:01:26]}  R6e7 {[%clk 0:01:06]} 32. Rg4+ {[%clk 0:01:23]}  Kh8 {[%clk 0:01:05]} 33. Ke3 {[%clk 0:01:23]}  Rb7 {[%clk 0:00:42]} 34. h5 {[%clk 0:01:06]}  b5 {[%clk 0:00:41]} 35. axb5 {[%clk 0:01:05]}  axb5 {[%clk 0:00:42]} 36. cxb5 {[%clk 0:01:06]}  Rxb5 {[%clk 0:00:42]} 37. Rf7 {[%clk 0:01:04]}  Rb6 {[%clk 0:00:35]} 38. Rgg7 {[%clk 0:00:59]}  Rh6 {[%clk 0:00:34]} 39. g4 {[%clk 0:00:59]}  Rc8 {[%clk 0:00:16]} 40. Rc7 {[%clk 0:00:55]}  Re8 {[%clk 0:00:10]} 41. Ke4 {[%clk 0:00:47]}  Rd8 {[%clk 0:00:10]} 42. Rgf7 {[%clk 0:00:41]}  Kg8 {[%clk 0:00:08]} 43. Rg7+ {[%clk 0:00:37]}  Kh8 {[%clk 0:00:08]} 44. Rgd7 {[%clk 0:00:37]}  Rd6 {[%clk 0:00:07]} 45. Rxd8+ {[%clk 0:00:32]}  Rxd8 {[%clk 0:00:06]} 46. h6 {[%clk 0:00:30]}  Rd4+ {[%clk 0:00:05]} 47. Kxe5 {[%clk 0:00:30]}  Kg8 {[%clk 0:00:05]} 48. Ke6 {[%clk 0:00:19]}  Rd8 {[%clk 0:00:03]} 49. Rxc5 {[%clk 0:00:18]}  Re8+ {[%clk 0:00:03]} 50. Kf6 {[%clk 0:00:17]}  Rd8 {[%clk 0:00:03]} 51. Ke7 {[%clk 0:00:15]}  Ra8 {[%clk 0:00:03]} 52. Rd5 {[%clk 0:00:15]}  Ra7+ {[%clk 0:00:02]} 53. Rd7 {[%clk 0:00:15]}  Ra8 {[%clk 0:00:02]} 54. Rd8+ {[%clk 0:00:15]}  Rxd8 {[%clk 0:00:03]} 55. Kxd8 {[%clk 0:00:16]} 1-0


[Site "https://www.chess.com"]

[Event "Titled Tuesday Blitz June 28 Early 2022"]
[White "Khamdamova, Afruza"]
[Black "Mangialardo, Tiago Carvalho"]
[WhiteFideId "14210444"]
[BlackFideId "2130718"]
[WhiteElo "1660"]
[BlackElo "2069"]
[Result "1-0"]
[Round "02"]
[TimeControl "180+1"]
[Date "2022.06.28"]
[WhiteClock "0:02:42"]
[BlackClock "0:02:14"]

1. e4 {[%clk 0:03:00]}  e5 {[%clk 0:02:59]} 2. Nf3 {[%clk 0:03:00]}  Nc6 {[%clk 0:02:59]} 3. Bb5 {[%clk 0:03:00]}  a6 {[%clk 0:02:59]} 4. Ba4 {[%clk 0:02:59]}  Nf6 {[%clk 0:02:59]} 5. O-O {[%clk 0:02:58]}  Be7 {[%clk 0:02:59]} 6. Re1 {[%clk 0:02:57]}  d6 {[%clk 0:02:59]} 7. c3 {[%clk 0:02:55]}  O-O {[%clk 0:02:58]} 8. h3 {[%clk 0:02:55]}  b5 {[%clk 0:02:56]} 9. Bb3 {[%clk 0:02:55]}  Na5 {[%clk 0:02:56]} 10. Bc2 {[%clk 0:02:54]}  c5 {[%clk 0:02:57]} 11. d4 {[%clk 0:02:52]}  cxd4 {[%clk 0:02:55]} 12. cxd4 {[%clk 0:02:52]}  exd4 {[%clk 0:02:56]} 13. Nxd4 {[%clk 0:02:51]}  Bb7 {[%clk 0:02:48]} 14. Nc3 {[%clk 0:02:50]}  Nc6 {[%clk 0:02:43]} 15. Nf5 {[%clk 0:02:50]}  Re8 {[%clk 0:02:39]} 16. Bg5 {[%clk 0:02:47]}  h6 {[%clk 0:02:35]} 17. Nxe7+ {[%clk 0:02:44]}  Qxe7 {[%clk 0:02:34]} 18. Nd5 {[%clk 0:02:44]}  Qd8 {[%clk 0:02:22]} 19. Nxf6+ {[%clk 0:02:43]}  gxf6 {[%clk 0:02:22]} 20. Bxh6 {[%clk 0:02:43]}  Nb4 {[%clk 0:02:14]} 21. Qg4+ {[%clk 0:02:42]} 1-0


[Site "https://www.chess.com"]

[Event "Titled Tuesday Blitz June 28 Early 2022"]
[White "Kucuksari, Kaan"]
[Black "Sadhwani, Raunak"]
[WhiteFideId "6380166"]
[BlackFideId "35093487"]
[WhiteElo "2305"]
[BlackElo "2616"]
[Result "0-1"]
[Round "02"]
[TimeControl "180+1"]
[Date "2022.06.28"]
[WhiteClock "0:00:04"]
[BlackClock "0:00:09"]

1. d4 {[%clk 0:03:00]}  g6 {[%clk 0:03:00]} 2. c4 {[%clk 0:02:59]}  Bg7 {[%clk 0:02:59]} 3. Nf3 {[%clk 0:02:57]}  d6 {[%clk 0:03:00]} 4. g3 {[%clk 0:02:53]}  Nh6 {[%clk 0:02:59]} 5. Bg2 {[%clk 0:02:53]}  O-O {[%clk 0:02:59]} 6. O-O {[%clk 0:02:53]}  Nc6 {[%clk 0:02:59]} 7. d5 {[%clk 0:02:47]}  Na5 {[%clk 0:02:58]} 8. Na3 {[%clk 0:02:11]}  c5 {[%clk 0:02:57]} 9. Rb1 {[%clk 0:02:10]}  a6 {[%clk 0:02:55]} 10. e4 {[%clk 0:02:08]}  Rb8 {[%clk 0:02:48]} 11. b3 {[%clk 0:02:05]}  e5 {[%clk 0:02:40]} 12. Nc2 {[%clk 0:01:55]}  b5 {[%clk 0:02:40]} 13. b4 {[%clk 0:01:35]}  Nxc4 {[%clk 0:02:39]} 14. bxc5 {[%clk 0:01:35]}  dxc5 {[%clk 0:02:40]} 15. Ne3 {[%clk 0:01:33]}  Nd6 {[%clk 0:02:39]} 16. Qc2 {[%clk 0:01:26]}  f5 {[%clk 0:02:34]} 17. Ng5 {[%clk 0:01:19]}  f4 {[%clk 0:02:26]} 18. Ne6 {[%clk 0:01:09]}  Bxe6 {[%clk 0:02:25]} 19. dxe6 {[%clk 0:01:10]}  fxe3 {[%clk 0:02:26]} 20. Bxe3 {[%clk 0:01:11]}  Nc4 {[%clk 0:02:04]} 21. Bxc5 {[%clk 0:00:57]}  Re8 {[%clk 0:02:03]} 22. Rbd1 {[%clk 0:00:47]}  Qc7 {[%clk 0:02:01]} 23. Bd6 {[%clk 0:00:47]}  Qc6 {[%clk 0:01:51]} 24. Bxb8 {[%clk 0:00:47]}  Rxb8 {[%clk 0:01:52]} 25. e7 {[%clk 0:00:43]}  Nf7 {[%clk 0:01:51]} 26. Bh3 {[%clk 0:00:38]}  Qe8 {[%clk 0:01:40]} 27. Rd7 {[%clk 0:00:35]}  Ng5 {[%clk 0:01:37]} 28. Bg4 {[%clk 0:00:35]}  h5 {[%clk 0:01:23]} 29. Rfd1 {[%clk 0:00:36]}  hxg4 {[%clk 0:01:19]} 30. Rd8 {[%clk 0:00:36]}  Nf3+ {[%clk 0:01:19]} 31. Kh1 {[%clk 0:00:32]}  Nd4 {[%clk 0:01:17]} 32. Rxe8+ {[%clk 0:00:21]}  Rxe8 {[%clk 0:01:18]} 33. Qc1 {[%clk 0:00:17]}  Rxe7 {[%clk 0:01:06]} 34. Qg5 {[%clk 0:00:17]}  Re6 {[%clk 0:00:51]} 35. Qxg4 {[%clk 0:00:16]}  Rf6 {[%clk 0:00:51]} 36. Kg2 {[%clk 0:00:16]}  Bf8 {[%clk 0:00:46]} 37. h4 {[%clk 0:00:10]}  Nc2 {[%clk 0:00:16]} 38. Qg5 {[%clk 0:00:11]}  Bg7 {[%clk 0:00:14]} 39. Rd8+ {[%clk 0:00:09]}  Kh7 {[%clk 0:00:13]} 40. Rd7 {[%clk 0:00:07]}  Rd6 {[%clk 0:00:11]} 41. Rxd6 {[%clk 0:00:06]}  Nxd6 {[%clk 0:00:11]} 42. h5 {[%clk 0:00:07]}  gxh5 {[%clk 0:00:11]} 43. Qxh5+ {[%clk 0:00:07]}  Kg8 {[%clk 0:00:12]} 44. Qd1 {[%clk 0:00:07]}  Nd4 {[%clk 0:00:12]} 45. f3 {[%clk 0:00:05]}  a5 {[%clk 0:00:11]} 46. Qd2 {[%clk 0:00:05]}  b4 {[%clk 0:00:11]} 47. Qg5 {[%clk 0:00:05]}  Nf7 {[%clk 0:00:11]} 48. Qe7 {[%clk 0:00:06]}  Bf8 {[%clk 0:00:10]} 49. Qa7 {[%clk 0:00:06]}  Nc6 {[%clk 0:00:08]} 50. Qa6 {[%clk 0:00:06]}  Nfd8 {[%clk 0:00:09]} 51. Qc4+ {[%clk 0:00:06]}  Kg7 {[%clk 0:00:09]} 52. f4 {[%clk 0:00:07]}  Kf6 {[%clk 0:00:10]} 53. Kf3 {[%clk 0:00:07]}  Nd4+ {[%clk 0:00:09]} 54. Kg2 {[%clk 0:00:06]}  N8e6 {[%clk 0:00:09]} 55. Qd5 {[%clk 0:00:07]}  exf4 {[%clk 0:00:08]} 56. e5+ {[%clk 0:00:04]}  Kg5 {[%clk 0:00:08]} 57. gxf4+ {[%clk 0:00:03]}  Nxf4+ {[%clk 0:00:08]} 58. Kg3 {[%clk 0:00:04]}  Nxd5 {[%clk 0:00:09]} 0-1


[Site "https://www.chess.com"]

[Event "Titled Tuesday Blitz June 28 Early 2022"]
[White "Ladopoulos, Dimitrios"]
[Black "Kupervaser, Erez"]
[WhiteFideId "4239580"]
[BlackFideId "2814587"]
[WhiteElo "2195"]
[BlackElo "1832"]
[Result "1-0"]
[Round "02"]
[TimeControl "180+1"]
[Date "2022.06.28"]
[WhiteClock "0:01:05"]
[BlackClock "0:00:39"]

1. e4 {[%clk 0:02:53]}  Nf6 {[%clk 0:02:59]} 2. e5 {[%clk 0:02:52]}  Nd5 {[%clk 0:02:59]} 3. Nf3 {[%clk 0:02:52]}  d6 {[%clk 0:02:59]} 4. d4 {[%clk 0:02:51]}  g6 {[%clk 0:02:59]} 5. Be2 {[%clk 0:02:51]}  Bg7 {[%clk 0:02:59]} 6. O-O {[%clk 0:02:51]}  O-O {[%clk 0:02:59]} 7. c4 {[%clk 0:02:51]}  Nb6 {[%clk 0:02:59]} 8. exd6 {[%clk 0:02:51]}  cxd6 {[%clk 0:02:59]} 9. Nc3 {[%clk 0:02:51]}  Nc6 {[%clk 0:02:58]} 10. h3 {[%clk 0:02:50]}  Bf5 {[%clk 0:02:58]} 11. b3 {[%clk 0:02:49]}  d5 {[%clk 0:02:53]} 12. c5 {[%clk 0:02:35]}  Nc8 {[%clk 0:02:50]} 13. Bf4 {[%clk 0:02:29]}  e6 {[%clk 0:02:49]} 14. a3 {[%clk 0:02:27]}  a6 {[%clk 0:02:49]} 15. b4 {[%clk 0:02:27]}  N8e7 {[%clk 0:02:48]} 16. Qd2 {[%clk 0:02:08]}  Be4 {[%clk 0:02:48]} 17. Ne5 {[%clk 0:02:02]}  Nxd4 {[%clk 0:01:39]} 18. Qxd4 {[%clk 0:01:54]}  Nc6 {[%clk 0:01:27]} 19. Nxc6 {[%clk 0:01:44]}  Bxd4 {[%clk 0:01:14]} 20. Nxd8 {[%clk 0:01:42]}  Bxc3 {[%clk 0:01:14]} 21. Nxb7 {[%clk 0:01:39]}  Bxa1 {[%clk 0:01:14]} 22. Rxa1 {[%clk 0:01:40]}  f6 {[%clk 0:01:12]} 23. Bd6 {[%clk 0:01:39]}  Rfc8 {[%clk 0:01:11]} 24. a4 {[%clk 0:01:26]}  e5 {[%clk 0:01:10]} 25. Rc1 {[%clk 0:01:25]}  d4 {[%clk 0:00:59]} 26. Na5 {[%clk 0:01:21]}  Kg7 {[%clk 0:00:57]} 27. Nc4 {[%clk 0:01:19]}  Rc6 {[%clk 0:00:54]} 28. b5 {[%clk 0:01:13]}  axb5 {[%clk 0:00:53]} 29. axb5 {[%clk 0:01:13]}  d3 {[%clk 0:00:50]} 30. Bxd3 {[%clk 0:01:06]}  Bxd3 {[%clk 0:00:50]} 31. bxc6 {[%clk 0:01:07]}  e4 {[%clk 0:00:39]} 32. Nb6 {[%clk 0:01:05]} 1-0


[Site "https://www.chess.com"]

[Event "Titled Tuesday Blitz June 28 Early 2022"]
[White "Large, Peter G"]
[Black "Nenezic, Marko"]
[WhiteFideId "400866"]
[BlackFideId "912123"]
[WhiteElo "2064"]
[BlackElo "2432"]
[Result "1-0"]
[Round "02"]
[TimeControl "180+1"]
[Date "2022.06.28"]
[WhiteClock "0:00:16"]
[BlackClock "0:00:42"]

1. Nf3 {[%clk 0:03:00]}  Nf6 {[%clk 0:02:57]} 2. b3 {[%clk 0:03:01]}  d6 {[%clk 0:02:54]} 3. d4 {[%clk 0:03:00]}  c5 {[%clk 0:02:53]} 4. Bb2 {[%clk 0:02:51]}  cxd4 {[%clk 0:02:53]} 5. Nxd4 {[%clk 0:02:51]}  e5 {[%clk 0:02:53]} 6. Nf3 {[%clk 0:02:49]}  e4 {[%clk 0:02:53]} 7. Nd4 {[%clk 0:02:48]}  d5 {[%clk 0:02:53]} 8. e3 {[%clk 0:02:45]}  Bb4+ {[%clk 0:02:53]} 9. Nd2 {[%clk 0:02:43]}  O-O {[%clk 0:02:41]} 10. Be2 {[%clk 0:02:42]}  a6 {[%clk 0:02:25]} 11. O-O {[%clk 0:02:41]}  Nc6 {[%clk 0:02:19]} 12. c4 {[%clk 0:02:37]}  Nxd4 {[%clk 0:02:15]} 13. Bxd4 {[%clk 0:02:36]}  Be6 {[%clk 0:02:16]} 14. Rc1 {[%clk 0:02:25]}  Ba3 {[%clk 0:02:15]} 15. Rc2 {[%clk 0:02:25]}  Rc8 {[%clk 0:02:02]} 16. Qa1 {[%clk 0:01:55]}  b5 {[%clk 0:02:01]} 17. c5 {[%clk 0:01:36]}  Rc6 {[%clk 0:01:43]} 18. Rb1 {[%clk 0:01:32]}  b4 {[%clk 0:01:26]} 19. Rd1 {[%clk 0:01:17]}  Ne8 {[%clk 0:01:23]} 20. Nb1 {[%clk 0:01:16]}  Qa5 {[%clk 0:01:24]} 21. Nxa3 {[%clk 0:01:14]}  Qxa3 {[%clk 0:01:25]} 22. Qc1 {[%clk 0:00:47]}  Qa5 {[%clk 0:01:23]} 23. Qd2 {[%clk 0:00:44]}  Qa3 {[%clk 0:01:18]} 24. Qc1 {[%clk 0:00:30]}  Qxc1 {[%clk 0:01:18]} 25. Rdxc1 {[%clk 0:00:30]}  Nc7 {[%clk 0:01:18]} 26. Ra1 {[%clk 0:00:28]}  f6 {[%clk 0:01:16]} 27. a3 {[%clk 0:00:28]}  bxa3 {[%clk 0:01:16]} 28. Rxa3 {[%clk 0:00:28]}  Rb8 {[%clk 0:01:17]} 29. Rca2 {[%clk 0:00:24]}  Kf7 {[%clk 0:01:14]} 30. h4 {[%clk 0:00:22]}  Kg6 {[%clk 0:01:07]} 31. g4 {[%clk 0:00:20]}  h5 {[%clk 0:01:07]} 32. gxh5+ {[%clk 0:00:20]}  Kh6 {[%clk 0:01:08]} 33. Kh2 {[%clk 0:00:19]}  Bf7 {[%clk 0:01:08]} 34. Bxa6 {[%clk 0:00:17]}  Nxa6 {[%clk 0:01:02]} 35. Rxa6 {[%clk 0:00:17]}  Rxa6 {[%clk 0:01:03]} 36. Rxa6 {[%clk 0:00:17]}  Rxb3 {[%clk 0:01:00]} 37. Ra8 {[%clk 0:00:15]}  Kxh5 {[%clk 0:00:57]} 38. c6 {[%clk 0:00:16]}  Be6 {[%clk 0:00:52]} 39. c7 {[%clk 0:00:16]}  Kxh4 {[%clk 0:00:42]} 40. c8=Q {[%clk 0:00:15]}  Bxc8 {[%clk 0:00:42]} 41. Rxc8 {[%clk 0:00:16]} 1-0


[Site "https://www.chess.com"]

[Event "Titled Tuesday Blitz June 28 Early 2022"]
[White "Lohani, Sujana"]
[Black "Hoffmann, Asa"]
[WhiteFideId "12311987"]
[BlackFideId "2001470"]
[WhiteElo "1691"]
[BlackElo "2117"]
[Result "1-0"]
[Round "02"]
[TimeControl "180+1"]
[Date "2022.06.28"]
[WhiteClock "0:00:01"]
[BlackClock "0:01:10"]

1. d4 {[%clk 0:02:58]}  Nf6 {[%clk 0:02:58]} 2. Nf3 {[%clk 0:02:56]}  d6 {[%clk 0:02:54]} 3. c4 {[%clk 0:02:57]}  c6 {[%clk 0:02:54]} 4. g3 {[%clk 0:02:56]}  Bf5 {[%clk 0:02:53]} 5. Bg2 {[%clk 0:02:49]}  h6 {[%clk 0:02:52]} 6. O-O {[%clk 0:02:48]}  Nbd7 {[%clk 0:02:52]} 7. Nc3 {[%clk 0:02:48]}  e5 {[%clk 0:02:52]} 8. dxe5 {[%clk 0:02:19]}  dxe5 {[%clk 0:02:51]} 9. Qb3 {[%clk 0:02:10]}  Qb6 {[%clk 0:02:50]} 10. Be3 {[%clk 0:02:00]}  Qxb3 {[%clk 0:02:40]} 11. axb3 {[%clk 0:01:58]}  Bc5 {[%clk 0:02:33]} 12. Bxc5 {[%clk 0:01:55]}  Nxc5 {[%clk 0:02:33]} 13. Nxe5 {[%clk 0:01:50]}  Nxb3 {[%clk 0:02:31]} 14. Ra3 {[%clk 0:01:46]}  Nc5 {[%clk 0:02:22]} 15. Nxc6 {[%clk 0:01:44]}  bxc6 {[%clk 0:02:19]} 16. Bxc6+ {[%clk 0:01:42]}  Ke7 {[%clk 0:02:18]} 17. Bxa8 {[%clk 0:01:36]}  Rxa8 {[%clk 0:02:17]} 18. Ra5 {[%clk 0:01:34]}  Bh3 {[%clk 0:01:59]} 19. Rfa1 {[%clk 0:01:25]}  Nfd7 {[%clk 0:01:54]} 20. Rxa7 {[%clk 0:01:12]}  Rb8 {[%clk 0:01:53]} 21. Nd5+ {[%clk 0:00:58]}  Ke6 {[%clk 0:01:42]} 22. Nf4+ {[%clk 0:00:56]}  Ke5 {[%clk 0:01:42]} 23. Nxh3 {[%clk 0:00:43]}  Rxb2 {[%clk 0:01:41]} 24. R1a2 {[%clk 0:00:38]}  Rb1+ {[%clk 0:01:40]} 25. Kg2 {[%clk 0:00:38]}  g5 {[%clk 0:01:40]} 26. Rd2 {[%clk 0:00:34]}  Nf6 {[%clk 0:01:39]} 27. f4+ {[%clk 0:00:31]}  gxf4 {[%clk 0:01:38]} 28. Nxf4 {[%clk 0:00:30]}  Nfe4 {[%clk 0:01:37]} 29. Rd5+ {[%clk 0:00:27]}  Kf6 {[%clk 0:01:35]} 30. Nh5+ {[%clk 0:00:18]}  Ke6 {[%clk 0:01:31]} 31. Ra5 {[%clk 0:00:16]}  Rb2 {[%clk 0:01:25]} 32. Kf3 {[%clk 0:00:14]}  Ng5+ {[%clk 0:01:22]} 33. Kg4 {[%clk 0:00:14]}  Nd7 {[%clk 0:01:17]} 34. Ng7+ {[%clk 0:00:12]}  Kf6 {[%clk 0:01:16]} 35. Nf5 {[%clk 0:00:09]}  Kg6 {[%clk 0:01:14]} 36. Rxd7 {[%clk 0:00:08]}  Rxe2 {[%clk 0:01:11]} 37. Ra6+ {[%clk 0:00:07]}  f6 {[%clk 0:01:10]} 38. Nh4# {[%clk 0:00:01]} 1-0


[Site "https://www.chess.com"]